bitfinex/quotes_BTCUSD_20220226
["timestamp","ask_amount","ask_price","bid_price","bid_amount"]
[1645859996472,9.6199282,39050.0,39049.0,0.374761]
[1645859996869,9.6199282,39050.0,39049.0,0.376761]
[1645859997669,9.6199282,39050.0,39049.0,0.37684368]
[1645859998126,9.6199282,39050.0,39049.0,0.37484368]
[1645859998923,9.6199282,39050.0,39049.0,0.37684368]
[1645860000224,8.8983194,39050.0,39049.0,0.37484368]
[1645860000426,8.8983194,39050.0,39049.0,0.59105228]
[1645860001025,8.8983194,39050.0,39049.0,0.59305228]
[1645860001226,8.8983194,39050.0,39049.0,0.37684368]
[1645860001874,8.8983194,39050.0,39049.0,0.59305228]
[1645860002279,8.8983194,39050.0,39049.0,0.59105228]
[1645860002475,8.8983194,39050.0,39049.0,0.37484368]
[1645860002675,8.8983194,39050.0,39049.0,0.59105228]
[1645860003077,8.8983194,39050.0,39049.0,0.37684368]
[1645860004678,8.8983194,39050.0,39049.0,0.62684368]
[1645860004878,8.8983194,39050.0,39049.0,0.62484368]
[1645860005280,8.8983194,39050.0,39049.0,0.67484368]
[1645860005522,8.8983194,39050.0,39049.0,0.94510442]
[1645860005724,8.8983194,39050.0,39049.0,0.67484368]
[1645860005923,8.8983194,39050.0,39049.0,0.94510442]
[1645860006527,8.8983194,39050.0,39049.0,0.67450861]
[1645860006930,8.8983194,39050.0,39049.0,0.67650861]
[1645860007126,8.8983194,39050.0,39049.0,0.626761]
[1645860007326,8.8983194,39050.0,39049.0,0.89702174]
[1645860007526,9.10563362,39050.0,39049.0,0.89702174]
[1645860007727,9.10563362,39050.0,39049.0,0.62684368]
[1645860007927,9.10563362,39050.0,39049.0,0.89710442]
[1645860007928,8.8983194,39050.0,39049.0,0.89710442]
[1645860008128,8.8983194,39050.0,39049.0,0.62484368]
[1645860008327,8.8983194,39050.0,39049.0,0.89535158]
[1645860008930,8.8983194,39050.0,39049.0,0.89735158]
[1645860009680,8.8983194,39050.0,39049.0,0.62684368]
[1645860010177,8.8983194,39050.0,39049.0,0.62484368]
[1645860010374,8.32103035,39050.0,39049.0,0.62484368]
[1645860010974,8.32103035,39050.0,39049.0,0.62684368]
[1645860011977,8.32103035,39050.0,39049.0,0.9482727]
[1645860012183,8.32103035,39050.0,39049.0,1.27058559]
[1645860012377,8.32103035,39050.0,39049.0,1.9657327]
[1645860012578,8.32103035,39050.0,39049.0,2.57679888]
[1645860012778,8.32103035,39050.0,39049.0,2.22397384]
[1645860013030,8.32103035,39050.0,39049.0,2.43740339]
[1645860013427,8.31603035,39050.0,39049.0,2.43740339]
[1645860013632,0.26874493,39067.0,39050.0,0.10287]
[1645860013832,0.21523056,39069.0,39063.0,0.380533]
[1645860014029,0.00014565,39070.0,39065.0,0.380533]
[1645860014329,0.00014565,39070.0,39065.0,0.531733]
[1645860014834,0.60861106,39074.0,39065.0,0.531733]
[1645860015028,0.60861106,39074.0,39065.0,0.483733]
[1645860015029,0.00014572,39070.0,39065.0,0.483733]
[1645860015230,0.00014572,39070.0,39065.0,0.002]
[1645860015730,0.23479957,39066.0,39065.0,0.002]
[1645860015930,0.23479957,39066.0,39065.0,0.382533]
[1645860016328,0.23479957,39066.0,39065.0,0.380533]
[1645860016978,0.23479957,39066.0,39065.0,0.381533]
[1645860017380,0.00030344,39070.0,39065.0,0.381533]
[1645860017979,0.00030344,39070.0,39066.0,0.380533]
[1645860018177,0.00030344,39070.0,39059.0,0.32142902]
[1645860018377,0.18406604,39068.0,39059.0,0.3938218]
[1645860018577,0.18406604,39068.0,39065.0,0.25]
[1645860018777,0.18406604,39068.0,39066.0,0.380533]
[1645860019581,0.27461616,39073.0,39065.0,0.25]
[1645860019780,0.00014571,39070.0,39066.0,0.380533]
[1645860020180,0.00014571,39070.0,39066.0,0.7243548]
[1645860020824,0.1229,39074.0,39066.0,0.7243548]
[1645860021027,0.00030371,39070.0,39066.0,0.7263548]
[1645860021226,0.00030371,39070.0,39066.0,0.7763548]
[1645860021826,0.1229,39074.0,39066.0,0.7763548]
[1645860022127,0.00031564,39070.0,39066.0,0.7743548]
[1645860023127,0.12,39078.0,39067.0,0.0512]
[1645860023328,0.00031564,39070.0,39068.0,0.7243548]
[1645860023527,0.00031564,39070.0,39069.0,0.7243548]
[1645860023729,0.12,39078.0,39069.0,0.7243548]
[1645860023730,0.11923238,39078.0,39070.0,1.2]
[1645860023931,0.11923238,39078.0,39071.0,0.3950218]
[1645860024129,0.01,39079.0,39072.0,0.380533]
[1645860024379,0.01,39079.0,39074.0,0.380533]
[1645860024575,0.01,39079.0,39076.0,0.380533]
[1645860024774,0.01,39079.0,39076.0,0.431733]
[1645860025580,0.01,39079.0,39077.0,0.3438218]
[1645860025782,0.01030337,39079.0,39078.0,0.431733]
[1645860025979,0.01030337,39079.0,39078.0,0.9357748]
[1645860026179,0.00530337,39079.0,39078.0,2.2034748]
[1645860026380,0.14373722,39090.0,39079.0,0.0046352]
[1645860026578,0.199,39096.0,39084.0,0.1]
[1645860026779,0.199,39096.0,39085.0,0.7857748]
[1645860026977,0.21504703,39097.0,39085.0,0.441953]
[1645860027182,0.21504703,39095.0,39085.0,0.0512]
[1645860027377,0.21504703,39095.0,39086.0,0.7243548]
[1645860027577,0.21504703,39095.0,39087.0,0.0512]
[1645860027782,0.21504703,39096.0,39088.0,0.7243548]
[1645860028025,0.2286011,39094.0,39090.0,0.380533]
[1645860028225,0.2286011,39094.0,39090.0,0.431733]
[1645860029229,0.2236011,39094.0,39090.0,0.431733]
[1645860029431,0.22376793,39094.0,39090.0,0.431733]
[1645860030333,0.2236011,39094.0,39090.0,0.431733]
[1645860030529,0.00032573,39094.0,39091.0,0.380533]
[1645860031333,0.00032573,39094.0,39090.0,0.0512]
[1645860031531,0.5033,39097.0,39090.0,0.0512]
[1645860031806,0.00032572,39094.0,39090.0,0.0520166]
[1645860032004,0.006621,39093.0,39090.0,0.0520166]
[1645860032303,0.006621,39093.0,39090.0,0.0008166]
[1645860032603,0.00032572,39094.0,39090.0,0.0008166]
[1645860032604,0.380533,39091.0,39090.0,0.0008166]
[1645860033404,0.23276302,39092.0,39090.0,0.0008166]
[1645860034003,0.003675,39097.0,39090.0,0.0008166]
[1645860034203,0.00032573,39093.0,39090.0,0.0008166]
[1645860035105,0.62884,39098.0,39090.0,0.0018166]
[1645860035524,0.00032573,39093.0,39090.0,0.0018166]
[1645860036023,0.59925835,39092.0,39090.0,0.0018166]
[1645860036229,1.2,39090.0,39087.0,0.25]
[1645860036422,0.380533,39089.0,39087.0,0.25]
[1645860036821,0.003675,39091.0,39087.0,0.25]
[1645860037021,0.380533,39090.0,39087.0,0.25]
[1645860037922,0.38085874,39090.0,39087.0,0.25]
[1645860038723,0.380533,39090.0,39087.0,0.25]
[1645860038922,0.38085874,39090.0,39087.0,0.25]
[1645860039326,0.00032574,39090.0,39087.0,0.25]
[1645860039728,1.768e-05,39090.0,39087.0,0.25]
[1645860039929,0.21872535,39092.0,39087.0,0.25]
[1645860040526,0.21872535,39092.0,39079.0,0.57154588]
[1645860040735,0.21872535,39092.0,39080.0,0.380533]
[1645860040927,0.21872535,39092.0,39081.0,0.34443894]
[1645860041127,0.21872535,39092.0,39082.0,0.380533]
[1645860041327,0.21889204,39092.0,39083.0,0.34443894]
[1645860041528,0.21889204,39092.0,39079.0,0.34907414]
[1645860041728,0.21889204,39092.0,39080.0,0.380533]
[1645860041930,0.21889204,39092.0,39081.0,0.34443894]
[1645860042329,0.21872535,39092.0,39079.0,0.34907414]
[1645860042530,0.21872535,39092.0,39088.0,6.904e-05]
[1645860042731,0.21905107,39092.0,39088.0,6.904e-05]
[1645860043633,0.21872535,39092.0,39088.0,6.904e-05]
[1645860043832,0.21905108,39092.0,39088.0,6.904e-05]
[1645860044633,0.34443894,39091.0,39088.0,6.904e-05]
[1645860044833,0.21872535,39092.0,39088.0,6.904e-05]
[1645860045034,0.21905108,39092.0,39088.0,6.904e-05]
[1645860045837,0.21905108,39092.0,39079.0,0.00452622]
[1645860045838,6.904e-05,39088.0,39079.0,0.00452622]
[1645860046235,0.5033,39091.0,39080.0,0.55]
[1645860046876,0.19576653,39082.0,39080.0,0.55]
[1645860047076,0.19576653,39082.0,39081.0,0.380533]
[1645860047876,0.1194,39090.0,39081.0,0.380533]
[1645860048076,0.1194,39090.0,39080.0,0.003]
[1645860048276,0.1194,39090.0,39081.0,0.380533]
[1645860048481,0.1194,39090.0,39082.0,0.34300476]
[1645860048977,0.17201737,39085.0,39083.0,0.380533]
[1645860049976,0.1194,39090.0,39083.0,0.380533]
[1645860050177,0.00239313,39088.0,39084.0,0.34300476]
[1645860050379,0.00239313,39088.0,39085.0,0.380533]
[1645860051041,0.00239313,39088.0,39085.0,0.381533]
[1645860051836,0.00239313,39088.0,39086.0,0.30696632]
[1645860052039,0.00239313,39088.0,39087.0,0.380533]
[1645860052236,0.00239313,39088.0,39087.0,0.69522347]
[1645860052435,0.00239313,39088.0,39087.0,0.430533]
[1645860052638,0.00239313,39088.0,39087.0,1.198053]
[1645860053136,0.00239313,39088.0,39087.0,1.200053]
[1645860054376,0.00239313,39088.0,39087.0,1.51206411]
[1645860055376,0.00239313,39088.0,39087.0,1.53760411]
[1645860055577,0.00239313,39088.0,39087.0,2.36670411]
[1645860056378,0.03917635,39100.0,39088.0,2.00344]
[1645860056576,0.03917635,39100.0,39089.0,0.79567887]
[1645860056778,1.93199748,39101.0,39089.0,0.84567887]
[1645860057377,1.93199748,39101.0,39091.0,0.380533]
[1645860057677,1.93199748,39101.0,39093.0,0.380533]
[1645860058119,1.93199748,39101.0,39093.0,0.430533]
[1645860060322,1.93199748,39101.0,39093.0,0.380533]
[1645860060522,1.93199748,39101.0,39095.0,0.00032693]
[1645860060722,0.00032688,39100.0,39095.0,0.00032693]
[1645860061228,0.00032688,39100.0,39096.0,0.380533]
[1645860061623,2.12449746,39101.0,39096.0,0.380533]
[1645860061878,2.12449746,39101.0,39096.0,0.38085992]
[1645860061879,0.00032689,39100.0,39096.0,0.38085992]
[1645860062878,2.12449746,39101.0,39096.0,0.380533]
[1645860063079,0.00032689,39100.0,39096.0,0.38185992]
[1645860063280,0.00032689,39100.0,39096.0,0.00132692]
[1645860063480,0.39359321,39100.0,39096.0,0.00132692]
[1645860063678,0.05152689,39100.0,39096.0,0.00132692]
[1645860063881,0.26657392,39100.0,39096.0,0.10122692]
[1645860064080,0.26624703,39100.0,39096.0,0.001]
[1645860064277,0.21504703,39099.0,39096.0,0.00032692]
[1645860064680,0.21504703,39099.0,39098.0,0.00288041]
[1645860065732,0.00032689,39100.0,39098.0,0.00288041]
[1645860065733,0.26913568,39100.0,39098.0,0.00288041]
[1645860066538,0.26880879,39100.0,39098.0,0.00288041]
[1645860067734,0.26880879,39100.0,39098.0,0.00295891]
[1645860067936,0.21538741,39099.0,39098.0,0.00295891]
[1645860068137,0.26880879,39099.0,39098.0,0.00295891]
[1645860068339,0.21543075,39099.0,39098.0,0.00295891]
[1645860070478,0.45,39098.0,39088.0,0.34206632]
[1645860070678,0.45,39098.0,39088.0,0.390763]
[1645860070979,0.21543075,39099.0,39088.0,0.430533]
[1645860071179,0.21543075,39099.0,39088.0,0.433533]
[1645860071577,0.23019722,39092.0,39088.0,0.433533]
[1645860071781,0.24097075,39099.0,39098.0,0.01980278]
[1645860071782,0.43701141,39099.0,39098.0,0.01980278]
[1645860072380,0.56642994,39099.0,39098.0,0.01980278]
[1645860072681,0.99816294,39099.0,39098.0,0.01987414]
[1645860073129,0.71862994,39099.0,39098.0,0.01987414]
[1645860073329,1.2,39098.0,39094.0,0.00032694]
[1645860073531,0.21537284,39095.0,39094.0,0.00032694]
[1645860073729,0.26657284,39095.0,39087.0,0.54634099]
[1645860073930,0.26657284,39095.0,39094.0,0.00030379]
[1645860074831,0.26657284,39095.0,39087.0,0.54634099]
[1645860075030,0.26657284,39095.0,39093.0,0.0003038]
[1645860076030,0.26657284,39095.0,39087.0,0.54634099]
[1645860076232,0.1841236,39092.0,39087.0,0.54634099]
[1645860076530,0.1841236,39092.0,39088.0,0.380533]
[1645860077578,0.1841236,39092.0,39088.0,0.38083681]
[1645860078181,0.0512,39095.0,39088.0,0.72416367]
[1645860078581,0.0512,39095.0,39088.0,0.72385986]
[1645860078880,0.0512,39095.0,39090.0,0.00030536]
[1645860079179,0.19477267,39095.0,39091.0,0.380533]
[1645860079979,0.19912898,39095.0,39091.0,0.38083836]
[1645860080380,0.19912898,39095.0,39092.0,0.380533]
[1645860081049,0.20112898,39095.0,39092.0,0.00030536]
[1645860081251,0.00635631,39095.0,39092.0,0.00030536]
[1645860081849,0.00635631,39095.0,39092.0,0.25030536]
[1645860082255,0.19948592,39094.0,39092.0,0.25030525]
[1645860082651,0.19948592,39094.0,39093.0,0.380533]
[1645860082951,0.11944589,39094.0,39092.0,0.25030525]
[1645860083350,0.11944589,39094.0,39092.0,0.25]
[1645860087286,0.11944589,39094.0,39093.0,0.380533]
[1645860087489,0.11944589,39094.0,39092.0,0.25]
[1645860088131,0.00435631,39095.0,39092.0,0.25]
[1645860088331,0.00435631,39095.0,39093.0,0.380533]
[1645860088731,0.00435631,39095.0,39092.0,0.25]
[1645860088935,0.00435631,39095.0,39093.0,0.380533]
[1645860089131,0.00435631,39095.0,39092.0,0.25]
[1645860089330,0.00435631,39095.0,39093.0,0.380533]
[1645860089533,0.00435631,39095.0,39092.0,0.25030526]
[1645860090433,0.00236156,39095.0,39092.0,0.25030526]
[1645860090635,0.00236156,39095.0,39093.0,0.380533]
[1645860090834,0.00236156,39095.0,39092.0,0.25030526]
[1645860091233,0.00236156,39095.0,39092.0,0.25130526]
[1645860092283,0.00236156,39095.0,39092.0,0.25030526]
[1645860092789,0.2177344,39095.0,39092.0,0.25030526]
[1645860092984,0.2177344,39095.0,39092.0,0.25]
[1645860093185,0.2177344,39095.0,39092.0,0.25030526]
[1645860093186,0.2197344,39095.0,39092.0,0.25030526]
[1645860094186,0.2197344,39095.0,39092.0,0.25]
[1645860094386,0.2177344,39095.0,39093.0,0.380533]
[1645860094586,0.00236156,39095.0,39093.0,0.380533]
[1645860095187,0.00236156,39095.0,39093.0,0.381533]
[1645860095393,0.00236156,39095.0,39093.0,0.72126279]
[1645860095641,0.00236156,39095.0,39093.0,0.381533]
[1645860096234,0.00236156,39095.0,39093.0,0.431533]
[1645860096435,0.00236156,39095.0,39093.0,0.430533]
[1645860096635,0.00236156,39095.0,39093.0,0.64650476]
[1645860096934,0.00236156,39095.0,39093.0,0.430533]
[1645860097134,0.00336156,39095.0,39093.0,0.430533]
[1645860098335,0.00236156,39095.0,39093.0,0.430533]
[1645860099135,0.00236156,39095.0,39093.0,0.481533]
[1645860099586,0.00236156,39095.0,39093.0,0.69750476]
[1645860099783,0.00236156,39095.0,39093.0,0.481533]
[1645860100184,0.001,39100.0,39093.0,0.481533]
[1645860100383,0.0003052,39099.0,39093.0,0.480533]
[1645860100587,0.00013618,39099.0,39093.0,0.480533]
[1645860101185,0.00013618,39099.0,39093.0,0.481533]
[1645860101385,2.15572725,39101.0,39093.0,0.481533]
[1645860102686,2.15572725,39101.0,39095.0,0.0001612]
[1645860102886,1.93199748,39101.0,39096.0,0.380533]
[1645860104035,1.93232436,39101.0,39096.0,0.380533]
[1645860105034,1.93199748,39101.0,39096.0,0.380533]
[1645860105234,1.93232436,39101.0,39096.0,0.380533]
[1645860106234,1.93199748,39101.0,39096.0,0.380533]
[1645860106434,1.93232436,39101.0,39096.0,0.380533]
[1645860107384,1.93199748,39101.0,39096.0,0.380533]
[1645860107689,1.93232436,39101.0,39096.0,0.380533]
[1645860108288,1.8527084,39101.0,39096.0,0.380533]
[1645860108483,1.85238152,39101.0,39096.0,0.380533]
[1645860108885,1.8527084,39101.0,39096.0,0.380533]
[1645860109684,1.85238152,39101.0,39096.0,0.380533]
[1645860110084,1.8527084,39101.0,39096.0,0.380533]
[1645860110937,1.85238152,39101.0,39097.0,0.3414993]
[1645860111133,1.8527084,39101.0,39098.0,0.380533]
[1645860111735,1.8527084,39101.0,39100.0,0.380533]
[1645860111935,1.8527084,39101.0,39100.0,0.7220323]
[1645860112134,1.85238152,39101.0,39100.0,0.7220323]
[1645860113135,1.85238152,39101.0,39100.0,0.7230323]
[1645860113546,1.85238152,39101.0,39100.0,0.7730323]
[1645860113737,1.74438152,39101.0,39100.0,0.8742323]
[1645860114382,1.74438152,39101.0,39100.0,0.8732323]
[1645860115182,1.74438152,39101.0,39100.0,0.8752323]
[1645860115582,1.74438152,39101.0,39100.0,1.3752323]
[1645860115583,1.74407365,39101.0,39100.0,1.3752323]
[1645860116187,1.02342897,39101.0,39100.0,1.3752323]
[1645860117086,1.02342897,39101.0,39100.0,1.3732323]
[1645860117284,1.02342897,39101.0,39100.0,1.3752323]
[1645860118133,8.12e-06,39101.0,39100.0,1.4007723]
[1645860118338,8.12e-06,39101.0,39100.0,3.13531319]
[1645860118533,8.12e-06,39101.0,39100.0,4.17576341]
[1645860118737,8.12e-06,39101.0,39100.0,4.2557123]
[1645860119335,0.01,39109.0,39105.0,0.02554]
[1645860119535,0.01,39109.0,39108.0,0.406073]
[1645860119734,0.0113073,39109.0,39108.0,0.7760066]
[1645860119935,0.0113073,39109.0,39108.0,1.7642966]
[1645860120635,0.0113073,39109.0,39108.0,1.7898366]
[1645860120636,0.01,39109.0,39108.0,1.7898366]
[1645860121238,0.01,39109.0,39108.0,2.3428366]
[1645860121892,0.01,39109.0,39108.0,2.55864018]
[1645860122091,0.01,39109.0,39108.0,2.3428366]
[1645860122490,0.01,39109.0,39108.0,2.3398366]
[1645860122693,0.01,39109.0,39108.0,2.8398366]
[1645860123190,0.01,39109.0,39108.0,2.8172966]
[1645860123396,0.01,39109.0,39108.0,2.723023]
[1645860124092,0.01,39109.0,39108.0,2.223023]
[1645860124691,0.01,39109.0,39108.0,2.220023]
[1645860125293,0.01,39109.0,39108.0,1.720023]
[1645860127331,0.01,39109.0,39108.0,1.723023]
[1645860128132,0.01,39109.0,39108.0,2.223023]
[1645860129132,0.01,39109.0,39108.0,2.220023]
[1645860130582,0.22189135,39123.0,39120.0,0.175156]
[1645860130789,0.380533,39122.0,39120.0,0.175156]
[1645860131788,0.22289135,39123.0,39120.0,0.175156]
[1645860132584,0.22189135,39123.0,39120.0,0.175156]
[1645860133039,0.2220472,39123.0,39120.0,0.175156]
[1645860133234,0.2220472,39123.0,39120.0,0.176156]
[1645860133633,0.2211372,39123.0,39120.0,0.426156]
[1645860133834,0.380533,39122.0,39120.0,0.426156]
[1645860134239,0.2213003,39123.0,39120.0,0.426156]
[1645860135036,0.22098135,39123.0,39120.0,0.425156]
[1645860135237,0.2223003,39123.0,39120.0,0.425156]
[1645860136241,0.001,39123.0,39121.0,0.34796034]
[1645860136440,0.001,39123.0,39121.0,0.72849334]
[1645860136441,0.00030564,39123.0,39121.0,0.72849334]
[1645860136639,0.00030564,39123.0,39122.0,0.34796034]
[1645860136887,0.00030564,39123.0,39122.0,0.72849334]
[1645860137383,0.1213,39129.0,39122.0,0.381533]
[1645860137583,0.1213,39129.0,39122.0,0.001]
[1645860137784,0.00030563,39124.0,39123.0,0.380533]
[1645860138583,0.2116653,39130.0,39120.0,0.425156]
[1645860138584,0.21044296,39130.0,39120.0,0.425156]
[1645860138786,0.00030563,39125.0,39121.0,0.34796034]
[1645860138985,0.00030563,39125.0,39122.0,0.380533]
[1645860139786,0.5033,39132.0,39122.0,0.380533]
[1645860139989,0.00014428,39125.0,39121.0,0.34796034]
[1645860140186,0.00014428,39125.0,39122.0,0.380533]
[1645860140389,0.00014428,39125.0,39123.0,0.34796034]
[1645860140656,0.00014428,39125.0,39124.0,0.380533]
[1645860141057,0.1226,39133.0,39124.0,0.380533]
[1645860141355,0.00014428,39126.0,39124.0,0.381533]
[1645860141560,0.04328129,39133.0,39126.0,0.380533]
[1645860141960,0.04,39135.0,39126.0,0.380533]
[1645860142958,0.04,39135.0,39128.0,0.380533]
[1645860143561,0.00015576,39134.0,39128.0,0.380533]
[1645860143763,0.00015576,39134.0,39129.0,0.33414495]
[1645860143960,0.00015576,39134.0,39130.0,0.380533]
[1645860144600,0.04,39135.0,39130.0,0.380533]
[1645860144995,0.00015576,39134.0,39130.0,0.380533]
[1645860145798,0.04,39135.0,39125.0,0.001]
[1645860145996,0.00031909,39134.0,39126.0,0.380533]
[1645860146694,0.00031909,39134.0,39122.0,0.00031919]
[1645860146695,0.00031909,39134.0,39127.0,0.380533]
[1645860146895,0.00031909,39134.0,39128.0,0.380533]
[1645860146896,0.18459214,39130.0,39128.0,0.380533]
[1645860147100,0.04,39135.0,39128.0,0.380533]
[1645860147297,0.00031124,39134.0,39129.0,0.34701608]
[1645860147499,0.00031124,39134.0,39125.0,0.72754908]
[1645860147900,0.00031124,39134.0,39126.0,0.0512]
[1645860148147,0.04,39135.0,39127.0,0.72754908]
[1645860148350,0.04,39135.0,39128.0,0.0512]
[1645860148549,0.04,39135.0,39129.0,0.380533]
[1645860148550,0.00014844,39134.0,39129.0,0.380533]
[1645860148748,0.00014844,39134.0,39130.0,0.0512]
[1645860148949,0.00014844,39134.0,39131.0,0.380533]
[1645860149149,0.00014844,39134.0,39132.0,0.0512]
[1645860149349,0.04,39135.0,39133.0,0.380533]
[1645860149549,0.04,39135.0,39133.0,0.431733]
[1645860149754,0.00014845,39134.0,39133.0,0.431733]
[1645860150649,0.04,39135.0,39133.0,0.431733]
[1645860150850,0.04031963,39135.0,39133.0,0.431733]
[1645860151252,0.04031963,39135.0,39133.0,0.432733]
[1645860151890,0.04,39135.0,39133.0,0.432733]
[1645860152488,0.04,39135.0,39133.0,0.431733]
[1645860152887,0.04,39135.0,39133.0,0.380533]
[1645860153488,0.25141316,39135.0,39133.0,0.380533]
[1645860153888,0.25141316,39135.0,39128.0,0.001]
[1645860154090,0.25141316,39135.0,39129.0,0.380533]
[1645860154288,0.25141316,39135.0,39128.0,0.001]
[1645860154490,0.00030716,39134.0,39128.0,0.001]
[1645860154691,0.00030716,39134.0,39129.0,0.380533]
[1645860154894,0.00030716,39134.0,39124.0,0.380533]
[1645860155092,0.00030716,39134.0,39128.0,0.25]
[1645860155290,0.00030716,39134.0,39130.0,0.380533]
[1645860155538,0.25141316,39135.0,39130.0,0.380533]
[1645860155743,0.00030716,39134.0,39130.0,0.380533]
[1645860156740,0.04,39135.0,39128.0,0.25]
[1645860156941,0.00030717,39134.0,39128.0,0.25]
[1645860157444,0.00030717,39134.0,39128.0,0.251]
[1645860157839,0.04,39135.0,39128.0,0.251]
[1645860158041,0.000308,39134.0,39128.0,0.251]
[1645860158240,0.18526548,39132.0,39128.0,0.251]
[1645860158439,0.000308,39134.0,39129.0,0.380533]
[1645860159140,0.04,39135.0,39129.0,0.72754908]
[1645860159388,0.000308,39134.0,39129.0,0.72854908]
[1645860159587,0.000308,39134.0,39129.0,0.381533]
[1645860160188,0.04,39135.0,39129.0,0.381533]
[1645860160589,0.000308,39134.0,39130.0,0.37999]
[1645860160790,0.000308,39134.0,39131.0,0.293494]
[1645860161402,0.001,39134.0,39131.0,0.293494]
[1645860161792,0.00130795,39134.0,39131.0,0.293494]
[1645860162596,0.001,39134.0,39131.0,0.293494]
[1645860163045,0.00130795,39134.0,39128.0,0.05530606]
[1645860163244,0.00130795,39134.0,39129.0,0.37999]
[1645860163445,0.00130795,39134.0,39132.0,0.37999]
[1645860163846,0.001,39134.0,39131.0,0.001]
[1645860164044,0.001,39134.0,39132.0,0.37999]
[1645860165151,0.04,39135.0,39132.0,0.37999]
[1645860165344,0.04030795,39135.0,39132.0,0.001]
[1645860165945,0.04030795,39135.0,39133.0,0.37999]
[1645860166145,0.04030795,39135.0,39132.0,0.001]
[1645860166346,0.04,39135.0,39132.0,0.001]
[1645860166833,0.04,39135.0,39128.0,0.05530606]
[1645860167230,0.21306708,39130.0,39128.0,0.05530606]
[1645860167430,0.21306708,39130.0,39129.0,0.37999]
[1645860168231,0.00030795,39134.0,39129.0,0.37999]
[1645860168631,0.04,39135.0,39128.0,0.05530606]
[1645860169034,0.00030795,39134.0,39128.0,0.05530606]
[1645860169233,0.00030795,39134.0,39129.0,0.37999]
[1645860169432,0.21263183,39132.0,39128.0,0.05530606]
[1645860169633,0.21263183,39132.0,39129.0,0.37999]
[1645860172247,0.0512,39131.0,39128.0,0.05530606]
[1645860172449,0.37999,39130.0,39128.0,0.05530606]
[1645860172646,0.0512,39129.0,39128.0,0.05530606]
[1645860173647,0.2666204,39129.0,39128.0,0.01467006]
[1645860173848,0.0512,39129.0,39128.0,0.01467006]
[1645860176998,0.26669128,39129.0,39128.0,0.01467006]
[1645860177599,0.0512,39129.0,39128.0,0.01467006]
[1645860178049,0.26671579,39129.0,39128.0,0.01467006]
[1645860178647,0.0512,39129.0,39128.0,0.01467006]
[1645860179251,0.05339053,39129.0,39128.0,0.01467006]
[1645860181555,0.00219053,39129.0,39128.0,0.01467006]
[1645860184094,0.21777469,39129.0,39128.0,0.01467006]
[1645860184295,0.00219053,39129.0,39128.0,0.01467006]
[1645860184695,0.21558416,39130.0,39128.0,0.01467006]
[1645860185544,0.21958416,39130.0,39128.0,0.01467006]
[1645860186846,0.21558416,39130.0,39128.0,0.01467006]
[1645860187548,0.21558416,39130.0,39128.0,0.01421656]
[1645860187958,0.21558416,39129.0,39128.0,0.01421656]
[1645860188948,0.21558416,39130.0,39128.0,0.01421656]
[1645860189392,0.004,39129.0,39128.0,0.01421656]
[1645860189591,0.004,39129.0,39128.0,0.39420656]
[1645860189791,0.004,39129.0,39128.0,0.01421656]
[1645860190394,0.21958416,39129.0,39128.0,0.01421656]
[1645860190694,0.2692755,39130.0,39128.0,0.00277413]
[1645860190893,0.47217209,39131.0,39128.0,0.00277413]
[1645860191097,0.4438306,39133.0,39128.0,0.00277413]
[1645860191098,0.2692755,39132.0,39128.0,0.00277413]
[1645860191297,0.3899755,39133.0,39128.0,0.00277413]
[1645860192194,0.3849755,39133.0,39128.0,0.00277413]
[1645860192594,0.1157,39133.0,39128.0,0.00277413]
[1645860193444,0.1157,39133.0,39128.0,0.00377413]
[1645860194046,0.00145802,39132.0,39128.0,0.00377413]
[1645860194744,0.00145802,39132.0,39128.0,0.00277413]
[1645860196794,0.00115042,39132.0,39128.0,0.00277413]
[1645860197393,0.00115042,39132.0,39128.0,0.00377413]
[1645860198294,0.00115042,39132.0,39129.0,0.37999]
[1645860198492,0.00115042,39132.0,39128.0,0.00377413]
[1645860198993,0.00115042,39132.0,39130.0,0.37999]
[1645860199294,0.00115042,39132.0,39128.0,0.00277413]
[1645860199592,0.00115042,39132.0,39128.0,0.00377413]
[1645860199794,0.00115042,39132.0,39130.0,0.37999]
[1645860199992,0.00115042,39132.0,39129.0,0.37999]
[1645860201439,0.00115042,39132.0,39129.0,0.38099]
[1645860202643,0.00115042,39132.0,39129.0,0.37999]
[1645860203944,0.00115042,39132.0,39131.0,0.37999]
[1645860204599,0.00115042,39132.0,39131.0,0.7279355]
[1645860204800,0.04,39135.0,39131.0,0.7279355]
[1645860205001,0.00028734,39134.0,39131.0,0.7279355]
[1645860206006,0.04,39135.0,39131.0,0.7279355]
[1645860206205,0.00028728,39134.0,39131.0,0.37999]
[1645860206409,0.00028728,39134.0,39131.0,0.379536]
[1645860207006,0.00028728,39134.0,39132.0,0.3479455]
[1645860207307,0.00028728,39134.0,39133.0,0.37999]
[1645860207910,0.00028728,39134.0,39133.0,0.7279355]
[1645860208148,0.00028728,39134.0,39133.0,0.37999]
[1645860208348,0.04,39135.0,39133.0,0.37999]
[1645860208551,0.04028728,39135.0,39134.0,0.7279295]
[1645860208750,0.04028728,39135.0,39134.0,0.379984]
[1645860209449,0.04,39135.0,39134.0,0.379984]
[1645860209648,0.04,39135.0,39134.0,0.380984]
[1645860210649,0.04,39135.0,39134.0,0.379984]
[1645860211650,0.04,39135.0,39134.0,0.37990733]
[1645860213491,0.04,39135.0,39134.0,0.38090733]
[1645860214691,0.04,39135.0,39134.0,0.37990733]
[1645860215540,0.04,39135.0,39134.0,0.38090733]
[1645860216747,0.04,39135.0,39134.0,0.37990733]
[1645860217443,0.04,39135.0,39134.0,0.72885283]
[1645860217644,0.04,39135.0,39134.0,0.38090733]
[1645860217843,0.04,39135.0,39134.0,0.72885283]
[1645860218043,0.04,39135.0,39134.0,0.38090733]
[1645860218848,0.04,39135.0,39134.0,0.37990733]
[1645860220894,0.04,39135.0,39134.0,0.32535098]
[1645860224048,0.04,39135.0,39134.0,0.6721053]
[1645860225247,0.04,39135.0,39134.0,0.7221053]
[1645860225650,0.04,39135.0,39134.0,0.7231053]
[1645860225850,0.04,39135.0,39134.0,0.7486453]
[1645860226053,0.00028728,39136.0,39135.0,1.61926858]
[1645860226250,0.00028728,39136.0,39135.0,1.67046858]
[1645860226451,0.01,39139.0,39135.0,1.72046858]
[1645860226650,0.01,39139.0,39138.0,0.21573947]